bitfinex/quotes_ETHUSD_20220218
["timestamp","ask_amount","ask_price","bid_price","bid_amount"]
[1645177957550,1.7062,2933.2,2933.0,2.93040621]
[1645177958553,1.7062,2933.2,2933.0,2.9256]
[1645177958753,1.7062,2933.2,2933.0,2.93040621]
[1645177959903,1.7062,2933.2,2933.0,2.9256]
[1645177959904,2.1962,2933.2,2933.0,2.9256]
[1645177960099,1.34308,2933.2,2933.0,2.93040621]
[1645177961000,1.34308,2933.2,2933.0,2.9256]
[1645177961201,1.34308,2933.2,2933.0,2.93040621]
[1645177962104,1.34308,2933.2,2933.0,2.9256]
[1645177962302,1.34308,2933.2,2933.0,6.33040621]
[1645177963461,1.34388,2933.2,2933.0,6.3256]
[1645177963659,1.34388,2933.2,2933.0,6.33040621]
[1645177964460,1.34388,2933.2,2933.0,6.3256]
[1645177964667,1.94388,2933.2,2933.0,6.3256]
[1645177964862,1.94388,2933.2,2933.0,6.33040621]
[1645177965361,1.94388,2933.2,2933.0,1.21134621]
[1645177965761,1.94308,2933.2,2933.0,1.20654]
[1645177966061,1.94308,2933.2,2933.0,1.21134621]
[1645177966860,1.70209065,2933.2,2933.0,1.20654]
[1645177967099,1.64308,2933.2,2933.0,1.20654]
[1645177967299,1.64308,2933.2,2933.0,1.21134621]
[1645177968196,1.94308,2933.2,2933.0,1.20654]
[1645177968401,1.94308,2933.2,2933.0,1.21134621]
[1645177968900,1.94308,2933.2,2933.0,1.21629089]
[1645177969404,1.94308,2933.2,2933.0,1.21148468]
[1645177969704,1.94308,2933.2,2933.0,1.21629089]
[1645177970504,1.94308,2933.2,2933.0,1.21148468]
[1645177970756,1.94308,2933.2,2933.0,1.21629089]
[1645177971157,2.02919616,2933.2,2933.0,1.21629089]
[1645177971359,2.02919616,2933.2,2932.5,0.01922774]
[1645177971360,1.70645,2933.0,2932.5,0.01922774]
[1645177971659,2.55963,2932.9,2932.5,0.01922774]
[1645177971857,0.3,2932.8,2932.2,3.5]
[1645177972661,0.85308,2932.6,2932.2,3.5]
[1645177973261,0.85308,2932.6,2932.4,0.00480673]
[1645177973866,1.70628,2932.6,2932.4,0.00480673]
[1645177974268,1.70628,2932.6,2932.1,1.2417]
[1645177974498,1.70628,2932.6,2932.4,0.00480673]
[1645177975301,1.70628,2932.6,2932.1,1.2417]
[1645177975701,1.70628,2932.6,2932.4,0.00480673]
[1645177976502,1.70628,2932.6,2932.2,3.5]
[1645177976905,1.70628,2932.6,2932.4,0.00480673]
[1645177977503,0.85308,2932.6,2932.4,0.00480673]
[1645177977903,0.85308,2932.6,2932.2,3.5]
[1645177978103,0.85308,2932.6,2932.4,0.00480673]
[1645177978552,0.85388,2932.6,2932.4,0.00480673]
[1645177978954,0.85468,2932.6,2932.2,3.5]
[1645177979253,1.70775,2932.6,2932.4,0.00480673]
[1645177979655,1.70695,2932.6,2932.4,0.00480673]
[1645177980261,1.70695,2932.6,2932.2,3.5]
[1645177980455,1.70695,2932.6,2932.4,0.00480673]
[1645177981458,1.70695,2932.6,2932.2,3.5]
[1645177981656,1.70695,2932.6,2932.4,0.00480673]
[1645177982504,1.70695,2932.6,2932.2,3.5]
[1645177982910,1.70695,2932.6,2932.4,0.00480673]
[1645177983910,1.70695,2932.6,2932.1,1.2417]
[1645177984110,1.70695,2932.6,2932.4,0.00480673]
[1645177984911,1.70695,2932.6,2932.2,3.5]
[1645177985111,1.70615,2932.6,2932.1,1.2417]
[1645177985311,1.70615,2932.6,2932.4,0.00480673]
[1645177985749,0.85308,2932.6,2932.4,0.00480673]
[1645177986149,0.85308,2932.6,2932.2,3.5]
[1645177986350,0.85308,2932.6,2932.4,0.00480673]
[1645177987451,1.70615,2932.6,2932.3,0.00492097]
[1645177987650,1.70615,2932.6,2932.4,0.00480673]
[1645177988656,1.70615,2932.6,2932.3,0.00492097]
[1645177988857,1.70615,2932.6,2932.4,0.00480673]
[1645177989898,1.70615,2932.6,2932.3,0.00492097]
[1645177990103,1.70615,2932.6,2932.4,0.00480673]
[1645177990899,1.70615,2932.6,2932.3,0.00492097]
[1645177991302,1.70615,2932.6,2932.4,0.00480673]
[1645177992303,1.70615,2932.6,2932.3,0.00492097]
[1645177992601,1.70615,2932.6,2932.4,0.00480673]
[1645177992901,1.70615,2932.6,2932.4,0.00394023]
[1645177993355,1.70615,2932.6,2932.3,0.00492097]
[1645177995656,0.85308,2932.6,2932.3,0.00492097]
[1645177995858,2.56127,2932.7,2932.4,1.45425772]
[1645177995859,0.0016,2932.7,2932.4,1.45425772]
[1645177996053,0.0016,2932.7,2932.5,0.00492097]
[1645177996854,0.85459,2932.7,2932.5,0.00492097]
[1645177997305,0.85459,2932.7,2932.4,0.0046092]
[1645177997908,0.85459,2932.7,2932.4,3.5046092]
[1645177998106,0.85459,2932.7,2932.5,0.00492097]
[1645177999510,1.7077648,2932.7,2932.5,0.00492097]
[1645178000512,0.85459,2932.7,2932.5,0.00492097]
[1645178002048,0.85314,2932.6,2932.4,0.00480238]
[1645178003049,0.85314,2932.6,2932.3,0.00492097]
[1645178003050,0.49,2932.5,2932.3,0.00492097]
[1645178003249,0.85335,2932.4,2932.3,0.00492097]
[1645178003455,1.34335,2932.4,2932.3,0.00492097]
[1645178003855,0.8533,2932.3,2932.1,0.00492097]
[1645178004055,1.70663,2932.2,2932.1,0.00492097]
[1645178004255,1.70663,2932.2,2931.5,1.19172097]
[1645178004256,5.69663,2932.2,2931.5,1.19172097]
[1645178004513,5.69663,2932.2,2931.2,0.00492097]
[1645178004514,0.85366,2931.9,2931.2,0.00492097]
[1645178004712,0.49,2931.8,2931.2,0.00492097]
[1645178005111,0.83969506,2931.5,2931.2,0.00492097]
[1645178005313,4.74415906,2931.5,2931.2,0.00492097]
[1645178005515,0.85362,2931.4,2931.2,0.00492097]
[1645178005712,0.49,2931.3,2931.0,0.00492097]
[1645178005915,0.49,2931.3,2930.6,0.00492097]
[1645178006115,0.49,2931.3,2930.7,1.45486981]
[1645178006318,1.70718,2931.2,2930.8,0.00492097]
[1645178006517,1.34359,2931.1,2930.8,0.00492097]
[1645178006715,1.34359,2931.1,2930.6,0.00492097]
[1645178006912,1.34359,2931.1,2930.7,1.45481858]
[1645178007312,1.34359,2931.1,2930.8,1.45973955]
[1645178007514,1.34359,2931.1,2930.7,1.19040378]
[1645178007815,1.34359,2931.1,2930.8,1.45974554]
[1645178008018,1.34359,2931.1,2930.8,0.00972478]
[1645178008457,2.19716,2931.1,2930.8,0.00972478]
[1645178009056,2.19796,2931.1,2930.8,0.00492097]
[1645178009258,3.0524294,2931.1,2930.8,0.00972474]
[1645178009456,2.19876,2931.1,2930.8,0.00480377]
[1645178010157,2.19876,2931.1,2930.4,0.02413892]
[1645178010158,2.19876,2931.1,2930.4,0.00492097]
[1645178010357,1.34517,2931.1,2930.6,1.17218846]
[1645178010561,0.85353,2930.9,2930.8,0.00480377]
[1645178010765,0.0016,2931.1,2930.9,1.55171885]
[1645178011058,0.0016,2931.1,2931.0,1.62535219]
[1645178011258,0.0016,2931.1,2931.0,1.63027316]
[1645178012097,0.0016,2931.1,2931.0,1.66529454]
[1645178014106,0.0016,2931.1,2931.0,1.49479454]
[1645178015106,0.0008,2931.1,2931.0,1.49479454]
[1645178015505,0.85344,2931.2,2931.0,1.49479454]
[1645178015753,0.85344,2931.2,2931.0,0.03994235]
[1645178016355,0.85344,2931.2,2931.0,0.03878606]
[1645178016553,0.85344,2931.2,2931.0,0.0435897]
[1645178017453,0.85344,2931.2,2931.0,0.03878606]
[1645178017856,0.85344,2931.2,2931.0,0.0435897]
[1645178018661,0.85344,2931.2,2931.0,0.03878606]
[1645178018862,0.85344,2931.2,2931.0,0.0435897]
[1645178019061,0.85344,2931.2,2931.1,1.45471327]
[1645178019499,0.85424,2931.2,2931.1,1.45471035]
[1645178019701,0.85504,2931.2,2931.0,0.0435897]
[1645178019904,0.85504,2931.2,2931.0,0.03878606]
[1645178020102,0.85504,2931.2,2931.0,0.04358966]
[1645178021105,0.85504,2931.2,2931.0,0.03878606]
[1645178021405,0.85504,2931.2,2931.0,0.0435897]
[1645178021812,0.85504,2931.2,2931.1,1.45470185]
[1645178022008,0.85504,2931.2,2931.0,0.00856832]
[1645178022212,0.85504,2931.2,2931.0,0.00376468]
[1645178022610,0.85504,2931.2,2931.0,0.00854632]
[1645178023452,1.34504,2931.2,2931.0,0.00376468]
[1645178023651,1.06048787,2931.1,2931.0,0.00854637]
[1645178024756,4.56048787,2931.1,2931.0,0.00376468]
[1645178024956,1.06048787,2931.1,2931.0,0.00376468]
[1645178025255,4.56048787,2931.1,2931.0,0.00376468]
[1645178025453,1.06048787,2931.1,2931.0,0.00376468]
[1645178026453,4.56048787,2931.1,2931.0,0.00376468]
[1645178026655,1.06048787,2931.1,2931.0,0.00376468]
[1645178028105,1.55048787,2931.1,2931.0,0.00376468]
[1645178029112,5.05048787,2931.1,2931.0,0.00376468]
[1645178029911,5.35048787,2931.1,2931.0,0.00376468]
[1645178030512,6.0,2931.0,2930.5,0.01921761]
[1645178030757,6.0,2931.0,2929.6,0.0433697]
[1645178030758,5.85389,2930.8,2929.6,0.0433697]
[1645178030960,2.19796,2930.7,2930.5,0.01885728]
[1645178031157,2.49796,2930.7,2930.5,0.01885728]
[1645178031957,0.85394,2930.4,2929.6,0.0433697]
[1645178032162,0.49,2930.3,2929.6,0.0433697]
[1645178033161,0.8540035,2930.1,2929.6,0.0433697]
[1645178033363,1.15550334,2929.9,2929.6,0.0433697]
[1645178033563,0.85396,2929.8,2929.6,0.0433697]
[1645178034602,0.85396,2929.8,2929.6,0.04816995]
[1645178035400,0.85396,2929.8,2929.6,0.0433697]
[1645178035803,0.85396,2929.8,2929.6,0.04816995]
[1645178036703,0.85396,2929.8,2929.6,0.0433697]
[1645178036904,0.85396,2929.8,2929.6,0.04816995]
[1645178037104,1.73634466,2929.8,2929.6,0.04816995]
[1645178037806,1.73634466,2929.8,2929.6,0.0433697]
[1645178038276,1.73634466,2929.8,2929.6,0.04816995]
[1645178038481,0.49,2929.7,2929.6,0.04816995]
[1645178038678,0.79,2929.7,2929.6,0.04816995]
[1645178038876,0.49,2929.7,2929.6,0.04816995]
[1645178039077,0.49,2929.7,2929.6,0.0433697]
[1645178039278,0.79,2929.7,2929.6,0.0433697]
[1645178039882,0.49,2929.7,2929.6,0.0433697]
[1645178041880,0.88389456,2929.8,2929.6,0.0433697]
[1645178042103,0.89343565,2929.8,2929.6,0.0433697]
[1645178042904,0.89343565,2929.8,2929.6,0.04816995]
[1645178043910,0.89343565,2929.8,2929.6,0.0433697]
[1645178044111,0.89343565,2929.8,2929.6,0.04816995]
[1645178045010,0.89343565,2929.8,2929.6,0.0433697]
[1645178045407,0.89343565,2929.8,2929.6,0.04816995]
[1645178046252,0.89263565,2929.8,2929.6,0.0433697]
[1645178046450,0.89183565,2929.8,2929.6,0.0433697]
[1645178046653,0.89183565,2929.8,2929.6,0.04816995]
[1645178047454,0.89183565,2929.8,2929.6,0.0433697]
[1645178047854,0.89183565,2929.8,2929.6,0.04816995]
[1645178048055,1.74588615,2929.8,2929.6,0.04816995]
[1645178048657,0.89183565,2929.8,2929.6,0.0433697]
[1645178049055,0.89183565,2929.8,2929.6,0.04816995]
[1645178049056,2.62511425,2929.8,2929.6,0.04816995]
[1645178049255,0.89183565,2929.8,2929.6,0.04816995]
[1645178049534,1.70802,2929.6,2929.0,1.07982576]
[1645178049729,1.70802,2929.6,2929.1,1.45554756]
[1645178050334,1.70802,2929.6,2929.1,2.63341523]
[1645178050531,1.70802,2929.6,2929.1,1.17786767]
[1645178052132,0.85401,2929.6,2929.1,1.17786767]
[1645178052531,0.00231039,2929.5,2929.1,1.17786767]
[1645178053553,0.85401,2929.6,2929.1,1.17786767]
[1645178053752,0.00480011,2929.4,2929.1,1.17786767]
[1645178053953,0.00480011,2929.4,2929.1,2.03175767]
[1645178054156,0.0016,2929.9,2929.1,2.03175767]
[1645178054157,0.0016,2929.9,2929.5,0.00916649]
[1645178054955,0.0016,2929.9,2929.7,1.0251948]
[1645178055357,0.0008,2929.9,2929.7,1.0251948]
[1645178055559,0.85383,2930.3,2929.7,1.0251948]
[1645178056157,0.00231039,2930.1,2929.7,1.0251948]
[1645178056559,0.85610039,2930.1,2929.7,1.0251948]
[1645178057206,0.85379,2930.1,2929.7,1.0251948]
[1645178057408,0.00203556,2930.0,2929.7,1.0251948]
[1645178058412,0.85372,2930.3,2929.7,1.0251948]
[1645178058614,0.00452481,2930.0,2929.7,1.0251948]
[1645178059012,0.00452481,2930.0,2929.8,1.45524862]
[1645178059213,0.00452481,2930.0,2929.7,1.0251948]
[1645178059214,0.00452481,2930.0,2929.7,1.3251948]
[1645178059613,0.85372,2930.3,2929.7,1.3251948]
[1645178059814,0.00452481,2930.0,2929.7,1.3251948]
[1645178060213,0.00452481,2930.0,2929.8,1.45526731]
[1645178060414,0.00452481,2930.0,2929.7,1.3251948]
[1645178060613,0.00452481,2930.0,2929.8,1.45525629]
[1645178060865,0.85372,2930.3,2929.8,1.45525629]
[1645178060866,0.85372,2930.3,2930.2,0.86619791]
[1645178062663,0.85372,2930.3,2929.7,0.3]
[1645178062865,0.85372,2930.3,2929.8,1.45523413]
[1645178063265,3.4150765,2930.7,2929.9,6.0]
[1645178063476,0.49,2931.3,2930.1,25.95994023]
[1645178063672,3.5,2931.6,2930.2,1.45523413]
[1645178063868,3.5,2931.6,2930.2,3.89873413]
[1645178064069,3.5,2931.6,2930.3,1.45523413]
[1645178064510,3.5,2931.6,2930.3,2.45523413]
[1645178064511,0.85352,2931.1,2930.3,2.45523413]
[1645178064711,0.85352,2931.1,2930.4,1.45523413]
[1645178064911,0.85352,2931.1,2930.4,1.46006]
[1645178065112,0.85352,2931.1,2930.5,0.85354]
[1645178065911,0.00197143,2930.9,2930.5,0.85354]
[1645178066713,0.85352,2931.1,2930.5,0.85354]
[1645178067115,0.00446686,2930.8,2930.5,0.85354]
[1645178068015,0.85359,2930.9,2930.5,0.85354]
[1645178068251,0.0044669,2930.8,2930.5,0.85354]
[1645178068659,0.0044669,2930.8,2930.4,0.00482587]
[1645178069259,0.85359,2930.9,2930.5,1.45506841]
[1645178069458,0.00446318,2930.7,2930.4,0.00482587]
[1645178069659,0.00446318,2930.7,2930.5,0.85353]
[1645178070459,0.0008,2930.8,2930.5,0.85353]
[1645178070657,0.00446318,2930.7,2930.5,0.85353]
[1645178071057,0.00446318,2930.7,2930.4,0.00482587]
[1645178071266,0.00446318,2930.7,2930.5,1.45505824]
[1645178071661,0.0016,2930.8,2930.5,1.45505824]
[1645178071859,0.00446322,2930.7,2930.5,1.45505824]
[1645178072306,0.00446322,2930.7,2930.5,0.3]
[1645178072504,0.00446322,2930.7,2930.5,1.15352]
[1645178072708,0.03938323,2930.8,2930.5,1.15352]
[1645178073205,0.00446343,2930.7,2930.5,1.15352]
[1645178073610,0.00446343,2930.7,2930.6,1.45500321]
[1645178074010,0.03938323,2930.8,2930.6,1.45500321]
[1645178074210,0.04384662,2930.8,2930.6,1.45500321]
[1645178075012,0.0008,2930.7,2930.6,1.45500321]
[1645178075415,0.0016,2930.7,2930.6,1.45500321]
[1645178075853,0.0016,2930.7,2930.5,1.15352]
[1645178075854,0.0016,2930.7,2930.5,0.85352]
[1645178076155,0.0016,2930.7,2930.3,2.25496461]
[1645178076355,0.0016,2930.7,2930.4,1.45508439]
[1645178076855,0.00606342,2930.7,2930.5,0.85352]
[1645178077654,0.0016,2930.7,2930.5,0.85352]
[1645178077956,0.00606342,2930.7,2930.5,0.85352]
[1645178078154,0.00606342,2930.7,2930.3,2.25496461]
[1645178078361,0.00606342,2930.7,2930.6,19.96]
[1645178078558,2.19683,2932.1,2930.7,6.01162339]
[1645178078559,0.49,2932.1,2930.7,6.01162339]
[1645178078861,0.49,2932.1,2930.8,1.1392]
[1645178079057,0.49,2932.1,2930.8,3.84407441]
[1645178079257,0.49,2932.1,2931.6,1.10032592]
[1645178079502,4.248,2932.4,2930.8,24.05588]
[1645178079503,0.85326,2932.0,2930.8,24.05588]
[1645178079700,0.85326,2932.0,2930.9,1.15334]
[1645178079901,0.85326,2932.0,2931.0,1.45479463]
[1645178080303,0.00197121,2931.6,2930.8,24.05588]
[1645178080503,0.00197121,2931.6,2931.2,0.94971844]
[1645178081306,0.85326,2932.0,2931.2,0.94971844]
[1645178081507,0.00197121,2931.5,2931.4,0.85324]
[1645178082503,0.85326,2932.0,2931.4,0.85324]
[1645178082703,0.00446604,2931.6,2931.4,0.85324]
[1645178083757,0.85326,2932.0,2931.1,1.0]
[1645178083957,0.00479824,2931.6,2931.3,1.15331]
[1645178084858,0.85326,2932.0,2931.3,1.15331]
[1645178085059,0.02869687,2932.1,2931.3,1.15331]
[1645178085258,0.00479828,2931.6,2931.3,1.15331]
[1645178085858,0.00479828,2931.6,2931.4,2.71317086]
[1645178086059,0.02869687,2932.1,2931.4,2.71317086]
[1645178086459,0.00479828,2931.6,2931.4,2.71317086]
[1645178087309,0.03818376,2932.0,2931.4,2.71317086]
[1645178087710,0.00479824,2931.6,2931.4,2.71317086]
[1645178088512,0.03818376,2932.0,2931.6,0.85316]
[1645178088710,0.03818376,2932.0,2931.4,1.70633]
[1645178088913,0.03818376,2932.0,2931.2,6.3638]
[1645178088914,0.85343,2931.9,2931.2,6.3638]
[1645178089112,2.19691,2931.8,2931.2,6.3638]
[1645178089714,2.19691,2931.8,2931.2,3.0782]
[1645178090013,0.85346,2931.7,2931.2,3.0782]
[1645178090413,0.85346,2931.7,2931.2,1.1758]
[1645178091056,0.85328,2931.9,2931.2,1.1758]
[1645178091255,0.00478944,2931.6,2931.2,1.1758]
[1645178092155,0.88185877,2931.9,2931.2,1.1758]
[1645178092357,0.00478948,2931.5,2931.4,0.85329]
[1645178093365,0.02857877,2931.9,2931.4,1.15329]
[1645178093764,0.00478944,2931.6,2931.5,0.3]
[1645178093964,0.00478944,2931.6,2931.4,0.85329]
[1645178094163,0.00478944,2931.6,2931.5,0.3]
[1645178094613,0.02857877,2931.9,2931.5,23.76]
[1645178094811,0.02857877,2931.9,2931.5,24.8631]
[1645178094812,0.00464572,2931.6,2931.5,24.8631]
[1645178095009,0.00464572,2931.6,2931.5,26.31757699]
[1645178095410,0.00464572,2931.6,2931.5,6.35757699]
[1645178096011,0.02857877,2931.9,2931.5,6.35757699]
[1645178096309,0.02857877,2931.9,2931.5,4.9031]
[1645178096310,0.00464568,2931.7,2931.5,4.9031]
[1645178096509,0.00464568,2931.7,2931.6,3.5]
[1645178096912,0.00464568,2931.7,2931.6,4.55924615]
[1645178097115,0.02951987,2931.8,2931.6,4.55924615]
[1645178097313,0.03416547,2931.8,2931.7,3.5]
[1645178098261,0.02951987,2931.8,2931.7,3.5]
[1645178099669,0.02951987,2931.8,2931.7,3.49904401]
[1645178101668,0.68696562,2932.3,2931.8,5.35317]
[1645178101867,0.68696562,2932.3,2931.8,1.15317]
[1645178102115,0.68696562,2932.3,2931.8,0.85317]
[1645178102317,0.68696562,2932.3,2931.6,1.05924615]
[1645178102516,0.68696562,2932.3,2931.5,0.25]
[1645178102715,0.68696562,2932.3,2931.6,0.85326]
[1645178103421,0.00195919,2932.1,2931.6,0.85326]
[1645178103622,0.85520919,2932.1,2931.5,0.25]
[1645178104323,0.85325,2932.1,2931.5,0.25]
[1645178104522,0.85332,2931.9,2931.5,0.25]
[1645178104926,0.85332,2931.9,2931.4,1.85329]
[1645178105128,0.00195912,2932.0,2931.4,1.85329]
[1645178105526,0.99529061,2932.2,2931.4,1.85329]
[1645178105759,0.00445685,2932.0,2931.4,2.10329]
[1645178105959,0.00445685,2932.0,2931.4,1.10329]
[1645178106260,1.71115685,2932.0,2931.4,0.85329]
[1645178106659,1.7067,2932.0,2931.4,0.85329]
[1645178106860,1.71124438,2932.0,2931.5,0.3]
[1645178107060,0.00454438,2932.0,2931.5,0.3]
[1645178107660,0.00454438,2932.0,2931.5,1.15326]
[1645178107860,0.8533,2931.9,2931.5,0.85326]
[1645178108664,0.8533,2931.9,2931.4,1.10329]
[1645178108864,0.8533,2931.9,2931.5,0.3]
[1645178109265,0.7133,2931.9,2931.5,0.3]
[1645178109907,0.7133,2931.9,2931.4,1.10329]
[1645178112711,0.7133,2931.9,2931.4,1.10329]
[1645178114162,1.62653209,2931.9,2931.3,0.85335]
[1645178114363,1.62653209,2931.9,2931.0,2.73]
[1645178114364,0.49,2931.8,2931.0,2.73]
[1645178114565,0.8536,2931.6,2930.9,3.5]
[1645178114763,1.3436,2931.6,2930.8,0.02228008]
[1645178115165,1.3436,2931.6,2930.7,0.01162339]
[1645178115366,1.3436,2931.6,2930.8,1.45936086]
[1645178115564,1.3436,2931.6,2930.9,3.5]
[1645178115765,1.3436,2931.6,2930.8,0.00445579]
[1645178116363,1.3436,2931.6,2930.7,0.01162339]
[1645178116565,1.3436,2931.6,2930.8,1.45935732]
[1645178116763,1.3436,2931.6,2930.8,0.00445579]
[1645178117008,0.85353,2931.5,2930.8,0.00445579]
[1645178117210,0.8535,2931.3,2930.8,0.00445579]
[1645178117713,0.8535,2931.3,2930.7,0.01162339]
[1645178117913,0.8535,2931.3,2930.8,1.45490325]
[1645178119117,0.8535,2931.3,2930.7,0.01162339]
[1645178119321,0.49,2931.2,2930.7,0.01162339]
[1645178119522,0.85368,2931.1,2930.7,0.01162339]
[1645178120761,0.85368,2931.1,2930.8,1.45487799]
[1645178120963,0.85368,2931.1,2930.7,0.86513339]
[1645178121362,0.85368,2931.1,2930.8,0.00465492]
[1645178122363,0.85368,2931.1,2930.7,0.01162339]
[1645178122567,0.85368,2931.1,2930.8,0.00465491]
[1645178123567,0.85368,2931.1,2930.7,0.01162339]
[1645178123788,0.85368,2931.1,2930.8,0.00465491]
[1645178124708,0.85368,2931.1,2930.7,0.01162339]
[1645178124909,0.85368,2931.1,2930.8,0.00443698]
[1645178125910,0.85368,2931.1,2930.7,0.01162339]
[1645178126110,0.85368,2931.1,2930.8,0.00443698]
[1645178126310,0.85368,2931.1,2930.8,0.85791698]
[1645178127111,0.85368,2931.1,2930.8,0.85348]
[1645178127312,0.85368,2931.1,2930.8,0.85791698]
[1645178127914,0.85368,2931.1,2930.8,0.00443698]
[1645178128366,0.85368,2931.1,2930.7,0.01162339]
[1645178128564,0.85368,2931.1,2930.8,0.00445157]
[1645178129563,0.85368,2931.1,2930.7,0.01162339]
[1645178129763,0.85368,2931.1,2930.8,0.00445157]
[1645178130771,0.85368,2931.1,2930.7,0.01162339]
[1645178130970,0.85368,2931.1,2930.8,0.00445157]
[1645178131866,0.85368,2931.1,2930.7,0.86513339]
[1645178132108,1.34352,2931.5,2930.8,0.00445059]
[1645178132109,0.85347,2931.3,2930.8,0.00445059]
[1645178132514,4.4996,2931.7,2930.8,3.6498975]
[1645178132709,3.50444867,2932.0,2930.8,3.8998975]
[1645178132909,3.50444867,2932.0,2930.9,1.202]
[1645178133108,3.50444867,2932.0,2931.1,0.85327]
[1645178133109,3.5,2932.0,2931.1,0.85327]
[1645178134014,3.8,2932.0,2931.3,0.85352567]
[1645178134214,22.0,2932.2,2931.4,0.85327]
[1645178134413,0.1091096,2932.1,2931.4,0.85327]
[1645178134614,0.85328,2931.9,2931.4,0.85327]
[1645178135015,1.15328,2931.9,2931.4,0.85327]
[1645178135774,1.70663,2932.1,2931.4,0.85327]
[1645178135775,0.00478469,2931.8,2931.5,0.3]
[1645178135975,0.00478469,2931.8,2931.5,1.15313]
[1645178136173,0.00478469,2931.8,2931.6,3.5]
[1645178136570,0.00478469,2931.8,2931.6,5.20618]
[1645178136771,0.00453926,2932.7,2931.7,3.5]
[1645178136971,0.00478465,2931.8,2931.7,3.8]
[1645178137773,0.00478465,2931.8,2931.7,3.5]
[1645178137973,0.85758926,2932.7,2932.2,1.01569854]
[1645178138173,0.85758926,2932.7,2932.3,3.5]
[1645178138380,0.85758926,2932.7,2932.3,4.35305]
[1645178138580,0.00453926,2932.7,2932.3,0.85305]
[1645178138782,0.00453926,2932.7,2932.3,4.35305]
[1645178139378,0.00478397,2932.6,2932.3,4.35558044]
[1645178140212,0.00453926,2932.7,2932.3,4.35558044]
[1645178140613,0.00478401,2932.6,2932.3,4.35558044]
[1645178141420,0.00453926,2932.7,2932.3,4.35558044]
[1645178141715,0.00478401,2932.6,2932.3,4.35558044]
[1645178141915,0.00478401,2932.6,2932.5,0.03136958]
[1645178142115,0.00478401,2932.6,2932.5,3.53136958]
[1645178142715,0.00453926,2932.7,2932.5,3.53136958]
[1645178142916,0.00478392,2932.7,2932.5,3.53136958]
[1645178143864,0.50453926,2932.8,2932.5,3.53136958]
[1645178144067,0.00478388,2932.7,2932.6,0.85289]
[1645178145068,0.50453926,2932.8,2932.6,0.85289]
[1645178145266,0.5093231,2932.8,2932.6,0.85289]
[1645178146065,0.5093231,2932.8,2932.7,3.5]
[1645178146265,0.5,2932.8,2932.7,3.5]
[1645178146667,0.5047838,2932.8,2932.7,3.5]
[1645178147313,0.5047838,2932.8,2932.7,0.97119242]
[1645178147516,0.5,2932.8,2932.7,0.97119242]
[1645178148917,0.5,2932.8,2932.7,4.47119242]
[1645178149320,0.5,2932.8,2932.7,0.97119242]
[1645178150019,0.5,2932.8,2932.7,4.47119242]
[1645178150221,0.00453926,2933.0,2932.7,5.32404242]
[1645178150222,0.00478375,2932.9,2932.7,5.32404242]
[1645178150425,0.00478375,2932.9,2932.8,3.5]
[1645178150617,0.00478375,2932.9,2932.7,0.97119242]
[1645178150872,0.00478375,2932.9,2932.7,2.69739242]
[1645178151071,0.00453926,2933.8,2932.7,3.55025532]
[1645178151275,0.00453926,2933.8,2933.3,0.85438803]
[1645178151574,0.85279,2933.6,2933.3,0.85438803]
[1645178151876,0.00453926,2933.5,2932.8,4.5]
[1645178152074,0.00453926,2933.5,2932.7,2.99647439]
[1645178152273,0.00453926,2933.5,2932.9,0.8528104]
[1645178152675,0.00478341,2933.3,2932.7,0.01567439]
[1645178152878,0.49,2933.2,2932.7,0.01567439]
[1645178153077,0.00453926,2933.1,2932.7,0.01567439]
[1645178153383,0.49,2933.0,2932.7,0.01567439]
[1645178153577,0.00453926,2932.9,2932.7,0.01567439]
[1645178153778,0.00453926,2932.9,2932.7,0.01466811]
[1645178153779,2.19635,2932.8,2932.7,0.01466811]
[1645178155010,0.49,2932.8,2932.7,0.01466811]
[1645178156917,0.49,2932.8,2932.5,0.01560251]
[1645178157413,1.343,2932.8,2932.5,0.01560251]
[1645178157614,1.34168578,2932.8,2932.5,0.01560251]
[1645178158264,0.48868578,2932.8,2932.5,0.01560251]
[1645178158670,0.49312667,2932.8,2932.5,0.01560251]
[1645178158967,0.49312667,2932.8,2932.5,0.86850251]
[1645178159571,0.48868578,2932.8,2932.5,0.86850251]
[1645178159768,0.49312667,2932.8,2932.5,0.86850251]
[1645178160169,0.49312667,2932.8,2932.5,4.66848251]
[1645178160170,0.00444089,2932.8,2932.5,4.66848251]
[1645178160370,0.00444089,2932.8,2932.5,4.96848251]
[1645178160570,0.00444089,2932.8,2932.6,0.1703]
[1645178160772,0.00453926,2933.6,2932.6,0.1703]
[1645178160968,0.00444089,2932.8,2932.6,0.1703]
[1645178161571,4.089e-05,2932.8,2932.7,20.81283]
[1645178161770,4.089e-05,2932.8,2932.7,21.41283]
[1645178162013,0.00453926,2933.8,2932.7,20.57560251]
[1645178162216,2.55855,2934.2,2932.8,23.46]
[1645178162217,0.00453926,2934.1,2932.8,23.46]
[1645178162615,0.85266,2934.0,2932.8,3.5]
[1645178162814,0.00453926,2933.9,2933.7,1.00220551]
[1645178163216,0.00453926,2933.9,2933.4,0.8526835]
[1645178164222,0.00453926,2933.9,2933.7,0.87027021]
[1645178165862,0.00932212,2933.9,2933.7,0.87027021]
[1645178166662,0.00453926,2933.9,2933.7,0.87027021]
[1645178167063,1.71488212,2933.9,2933.7,0.87027021]
[1645178167471,1.71488212,2933.9,2933.8,3.5]
[1645178167472,0.00932212,2933.9,2933.8,3.5]
[1645178167866,0.01912857,2934.4,2933.8,0.7517]
[1645178167867,0.02366783,2934.4,2933.8,0.7517]
[1645178168066,0.00453926,2934.7,2933.8,0.7517]
[1645178168266,1.70955926,2934.9,2933.9,0.8524859]
[1645178168468,1.70955926,2934.9,2934.4,1.09935097]
[1645178168871,1.70955926,2934.9,2933.9,3.0551]
[1645178168872,0.85246,2934.8,2933.9,3.0551]
[1645178169071,0.00453926,2934.7,2934.0,3.5]
[1645178169270,1.70516,2934.6,2934.0,3.5]
[1645178169511,1.70516,2934.6,2933.9,3.0551]
[1645178169715,0.00453926,2934.5,2934.0,3.5]
[1645178169914,0.00453926,2934.5,2934.0,1.19266631]
[1645178170513,0.00478188,2934.4,2934.0,1.19266631]
[1645178171613,0.85711926,2934.5,2934.0,1.19266631]